[Event "*** MasterClass Titled Tuesday Blitz"]
[Site "Chess.com"]
[Date "2017.09.05"]
[Round "1"]
[White "ChadaevNikolay"]
[Black "Grebeniuk-S"]
[Result "1-0"]
[WhiteElo "2698"]
[BlackElo "2397"]
[TimeControl "180+2"]
[EndTime "13:07:39 PDT"]
[Termination "ChadaevNikolay won by resignation"]

1. e4 {[%clk 0:03:01.9]} 1... c5 {[%clk 0:02:59.8]} 2. Nf3 {[%clk 0:03:01.9]}
2... d6 {[%clk 0:03:00.7]} 3. d4 {[%clk 0:03:01.6]} 3... Nf6 {[%clk 0:03:01.9]}
4. dxc5 {[%clk 0:03:01.2]} 4... Nxe4 {[%clk 0:03:02.3]} 5. cxd6 {[%clk
0:03:01.6]} 5... Nxd6 {[%clk 0:03:02.6]} 6. Bf4 {[%clk 0:02:52.6]} 6... Nc6
{[%clk 0:02:54.3]} 7. Nc3 {[%clk 0:02:52.7]} 7... Bg4 {[%clk 0:02:48.2]} 8. h3
{[%clk 0:02:51.8]} 8... Bh5 {[%clk 0:02:41.5]} 9. g4 {[%clk 0:02:50.3]} 9... Bg6
{[%clk 0:02:42.4]} 10. Bg2 {[%clk 0:02:51.5]} 10... e6 {[%clk 0:02:35.5]} 11.
Ne5 {[%clk 0:02:44.6]} 11... Nxe5 {[%clk 0:02:28.3]} 12. Bxe5 {[%clk 0:02:45.3]}
12... Qb6 {[%clk 0:02:24.7]} 13. O-O {[%clk 0:02:34.1]} 13... Rd8 {[%clk
0:02:25.3]} 14. Qe2 {[%clk 0:02:30.9]} 14... h5 {[%clk 0:02:18.8]} 15. Nd5
{[%clk 0:02:13.5]} 15... Qc5 {[%clk 0:01:54.9]} 16. Rad1 {[%clk 0:02:02.2]}
16... hxg4 {[%clk 0:01:36.2]} 17. hxg4 {[%clk 0:02:02.7]} 17... Be4 {[%clk
0:01:02.1]} 18. Bxe4 {[%clk 0:01:47.9]} 18... exd5 {[%clk 0:00:49.9]} 19. Rxd5
{[%clk 0:01:46.9]} 19... Qc4 {[%clk 0:00:30.7]} 20. Qxc4 {[%clk 0:01:28.1]}
20... Nxc4 {[%clk 0:00:32.6]} 21. Bc3 {[%clk 0:01:24.5]} 21... Bd6 {[%clk
0:00:14.6]} 22. Rfd1 {[%clk 0:01:23.3]} 22... Bh2+ {[%clk 0:00:12.8]} 23. Kg2
{[%clk 0:01:23.7]} 23... Rxd5 {[%clk 0:00:13.7]} 24. Bxd5 {[%clk 0:01:24.6]}
24... Nd6 {[%clk 0:00:11.9]} 25. Bxg7 {[%clk 0:01:24.9]} 25... Rg8 {[%clk
0:00:13]} 26. Bf6 {[%clk 0:01:22]} 26... Bf4 {[%clk 0:00:13.2]} 27. Kf3 {[%clk
0:01:21.7]} 27... Bh2 {[%clk 0:00:14.2]} 28. c4 {[%clk 0:01:20.9]} 28... b6
{[%clk 0:00:11.8]} 29. Rh1 {[%clk 0:01:17.8]} 29... Rg6 {[%clk 0:00:10.2]} 30.
g5 {[%clk 0:01:18.5]} 30... Rxf6+ {[%clk 0:00:04.1]} 31. gxf6 {[%clk 0:01:19]}
31... Be5 {[%clk 0:00:06]} 32. Bc6+ {[%clk 0:01:19.7]} 32... Kd8 {[%clk
0:00:07]} 33. Bd5 {[%clk 0:01:17.9]} 33... Bxf6 {[%clk 0:00:07.5]} 34. b4 {[%clk
0:01:18.4]} 34... Ke7 {[%clk 0:00:07.9]} 35. c5 {[%clk 0:01:19.1]} 35... bxc5
{[%clk 0:00:09.8]} 36. bxc5 {[%clk 0:01:20.4]} 36... Nb5 {[%clk 0:00:11.6]} 37.
Re1+ {[%clk 0:01:19.5]} 37... Kd7 {[%clk 0:00:10.3]} 38. Bxf7 {[%clk 0:01:20.4]}
38... Bc3 {[%clk 0:00:08.1]} 39. Rd1+ {[%clk 0:01:19.7]} 39... Kc6 {[%clk
0:00:08.5]} 40. Be8+ {[%clk 0:01:20.7]} 40... Kxc5 {[%clk 0:00:10.1]} 41. Bxb5
{[%clk 0:01:21.7]} 1-0

[Event "*** MasterClass Titled Tuesday Blitz"]
[Site "Chess.com"]
[Date "2017.09.05"]
[Round "1"]
[White "champ2005"]
[Black "stefanodinn"]
[Result "1-0"]
[WhiteElo "2488"]
[BlackElo "2197"]
[TimeControl "180+2"]
[EndTime "13:07:42 PDT"]
[Termination "champ2005 won by resignation"]

1. e4 {[%clk 0:03:01.9]} 1... c5 {[%clk 0:02:59.9]} 2. Nf3 {[%clk 0:03:02.2]}
2... d6 {[%clk 0:03:00.8]} 3. d4 {[%clk 0:03:03.2]} 3... cxd4 {[%clk 0:03:01.1]}
4. Nxd4 {[%clk 0:03:04]} 4... Nf6 {[%clk 0:03:00.4]} 5. Nc3 {[%clk 0:03:05]}
5... a6 {[%clk 0:03:00.7]} 6. h3 {[%clk 0:03:05.2]} 6... e6 {[%clk 0:03:00.8]}
7. g4 {[%clk 0:03:05.7]} 7... d5 {[%clk 0:03:01.1]} 8. e5 {[%clk 0:03:03]} 8...
Nfd7 {[%clk 0:03:01.4]} 9. f4 {[%clk 0:03:03]} 9... Nc6 {[%clk 0:02:46.2]} 10.
Be3 {[%clk 0:03:00.2]} 10... Bc5 {[%clk 0:02:45.7]} 11. Qd2 {[%clk 0:02:58]}
11... O-O {[%clk 0:02:20.8]} 12. Bg2 {[%clk 0:02:50.2]} 12... Nxd4 {[%clk
0:02:09.9]} 13. Bxd4 {[%clk 0:02:48.3]} 13... b5 {[%clk 0:02:10.4]} 14. O-O
{[%clk 0:02:40.6]} 14... Bb7 {[%clk 0:02:09]} 15. Kh1 {[%clk 0:02:40.6]} 15...
Qb6 {[%clk 0:02:08.2]} 16. Ne2 {[%clk 0:02:39.6]} 16... b4 {[%clk 0:02:03.5]}
17. c3 {[%clk 0:02:35.7]} 17... a5 {[%clk 0:02:02.9]} 18. f5 {[%clk 0:02:24.8]}
18... exf5 {[%clk 0:01:33]} 19. gxf5 {[%clk 0:02:25.1]} 19... Rfe8 {[%clk
0:01:29.9]} 20. f6 {[%clk 0:02:13.2]} 20... Nxe5 {[%clk 0:01:24]} 21. fxg7
{[%clk 0:01:45.2]} 21... Bxd4 {[%clk 0:00:42.7]} 22. Nxd4 {[%clk 0:01:37.2]}
22... Ba6 {[%clk 0:00:34.4]} 23. Rf4 {[%clk 0:01:14.4]} 23... Nc4 {[%clk
0:00:30.8]} 24. Qf2 {[%clk 0:01:11.1]} 24... Ne3 {[%clk 0:00:23.2]} 25. Rg1
{[%clk 0:00:54.1]} 25... Re7 {[%clk 0:00:17.1]} 26. Nf5 {[%clk 0:00:48.6]} 26...
Re6 {[%clk 0:00:07.4]} 27. Nxe3 {[%clk 0:00:29]} 1-0

[Event "*** MasterClass Titled Tuesday Blitz"]
[Site "Chess.com"]
[Date "2017.09.05"]
[Round "1"]
[White "Daniela_Movileanu"]
[Black "popov_m"]
[Result "0-1"]
[WhiteElo "2010"]
[BlackElo "2427"]
[TimeControl "180+2"]
[EndTime "13:07:45 PDT"]
[Termination "popov_m won by checkmate"]

1. e4 {[%clk 0:03:01.9]} 1... g6 {[%clk 0:02:21.6]} 2. d4 {[%clk 0:02:59.6]}
2... Bg7 {[%clk 0:02:14.4]} 3. Nf3 {[%clk 0:02:56.3]} 3... d6 {[%clk 0:02:13.7]}
4. Be2 {[%clk 0:02:57.4]} 4... Nf6 {[%clk 0:02:14]} 5. Nc3 {[%clk 0:02:57.7]}
5... O-O {[%clk 0:02:15.2]} 6. O-O {[%clk 0:02:59.2]} 6... a6 {[%clk 0:02:16.3]}
7. a4 {[%clk 0:02:59.8]} 7... Nc6 {[%clk 0:02:17.7]} 8. d5 {[%clk 0:03:00.3]}
8... Nb4 {[%clk 0:02:15.6]} 9. h3 {[%clk 0:02:56.5]} 9... e6 {[%clk 0:02:13]}
10. Bg5 {[%clk 0:02:53.3]} 10... exd5 {[%clk 0:02:10.2]} 11. exd5 {[%clk
0:02:47]} 11... Bf5 {[%clk 0:02:11.3]} 12. Nd4 {[%clk 0:02:45]} 12... Bd7 {[%clk
0:02:08.7]} 13. Bc4 {[%clk 0:02:41.2]} 13... h6 {[%clk 0:01:58.4]} 14. Bh4
{[%clk 0:02:40.9]} 14... Re8 {[%clk 0:01:59.2]} 15. Qd2 {[%clk 0:02:38.2]} 15...
g5 {[%clk 0:01:53.6]} 16. Bg3 {[%clk 0:02:38.6]} 16... Ne4 {[%clk 0:01:55]} 17.
Nxe4 {[%clk 0:02:38.5]} 17... Rxe4 {[%clk 0:01:56.9]} 18. c3 {[%clk 0:02:39.2]}
18... a5 {[%clk 0:01:21.4]} 19. Rfe1 {[%clk 0:02:21]} 19... Rxe1+ {[%clk
0:01:11.9]} 20. Rxe1 {[%clk 0:02:22.9]} 20... Na6 {[%clk 0:01:13.6]} 21. b3
{[%clk 0:02:20.4]} 21... Nc5 {[%clk 0:01:13.3]} 22. Qc2 {[%clk 0:02:15]} 22...
Qf6 {[%clk 0:01:12.4]} 23. Nb5 {[%clk 0:02:05.9]} 23... Bxb5 {[%clk 0:00:49]}
24. Bxb5 {[%clk 0:02:07.8]} 24... Qxc3 {[%clk 0:00:50]} 25. Qxc3 {[%clk
0:02:08.8]} 25... Bxc3 {[%clk 0:00:50.9]} 26. Re7 {[%clk 0:02:09.6]} 26... Rc8
{[%clk 0:00:51.1]} 27. Bc4 {[%clk 0:02:07.2]} 27... Kf8 {[%clk 0:00:49.3]} 28.
Re3 {[%clk 0:02:04.6]} 28... Bd4 {[%clk 0:00:50.5]} 29. Re2 {[%clk 0:02:02.3]}
29... Re8 {[%clk 0:00:51.5]} 30. Kf1 {[%clk 0:01:59.2]} 30... Ne4 {[%clk
0:00:44.7]} 31. Bb5 {[%clk 0:01:51.7]} 31... Re7 {[%clk 0:00:43]} 32. Rc2 {[%clk
0:01:46.3]} 32... Bb6 {[%clk 0:00:39.7]} 33. Bh2 {[%clk 0:01:46.3]} 33... f5
{[%clk 0:00:31.4]} 34. f3 {[%clk 0:01:46.8]} 34... Nc5 {[%clk 0:00:31]} 35. Rc3
{[%clk 0:01:47]} 35... Kg7 {[%clk 0:00:30.7]} 36. Bg1 {[%clk 0:01:47.5]} 36...
Kf6 {[%clk 0:00:31.4]} 37. Bd4+ {[%clk 0:01:48.2]} 37... Kf7 {[%clk 0:00:31.8]}
38. Rc4 {[%clk 0:01:47.8]} 38... Nxb3 {[%clk 0:00:29]} 39. Bxb6 {[%clk
0:01:47.3]} 39... Nd2+ {[%clk 0:00:30.3]} 40. Kf2 {[%clk 0:01:46.9]} 40... Nxc4
{[%clk 0:00:31.9]} 41. Bxc4 {[%clk 0:01:45.6]} 41... cxb6 {[%clk 0:00:32.9]} 42.
Bd3 {[%clk 0:01:43.1]} 42... Kf6 {[%clk 0:00:33.9]} 43. Bb5 {[%clk 0:01:43.2]}
43... f4 {[%clk 0:00:34]} 44. g3 {[%clk 0:01:43.3]} 44... Re3 {[%clk 0:00:35.1]}
45. h4 {[%clk 0:01:42.4]} 45... Ke5 {[%clk 0:00:35.8]} 46. hxg5 {[%clk
0:01:42.6]} 46... hxg5 {[%clk 0:00:37.7]} 47. gxf4+ {[%clk 0:01:43.4]} 47...
gxf4 {[%clk 0:00:39.6]} 48. Bc4 {[%clk 0:01:43.8]} 48... Ra3 {[%clk 0:00:39.1]}
49. Bb5 {[%clk 0:01:43.8]} 49... Kxd5 {[%clk 0:00:40]} 50. Ke2 {[%clk 0:01:45]}
50... Kd4 {[%clk 0:00:40.9]} 51. Kd2 {[%clk 0:01:45.8]} 51... Ra2+ {[%clk
0:00:42.3]} 52. Kc1 {[%clk 0:01:46.6]} 52... Ke3 {[%clk 0:00:43.3]} 53. Kb1
{[%clk 0:01:47.4]} 53... Rh2 {[%clk 0:00:44.4]} 54. Kc1 {[%clk 0:01:47.9]} 54...
d5 {[%clk 0:00:45.7]} 55. Kd1 {[%clk 0:01:48.6]} 55... d4 {[%clk 0:00:47]} 56.
Kc1 {[%clk 0:01:49.6]} 56... d3 {[%clk 0:00:48.3]} 57. Kd1 {[%clk 0:01:50.4]}
57... Rh1# {[%clk 0:00:49.4]} 0-1

[Event "*** MasterClass Titled Tuesday Blitz"]
[Site "Chess.com"]
[Date "2017.09.05"]
[Round "1"]
[White "grzechu96"]
[Black "chesstatour"]
[Result "1-0"]
[WhiteElo "2437"]
[BlackElo "2055"]
[TimeControl "180+2"]
[EndTime "13:07:47 PDT"]
[Termination "grzechu96 won on time"]

1. e4 {[%clk 0:03:01.9]} 1... c6 {[%clk 0:03:00.6]} 2. d4 {[%clk 0:03:02.7]}
2... d5 {[%clk 0:03:02.1]} 3. Nc3 {[%clk 0:03:03.5]} 3... dxe4 {[%clk 0:03:02]}
4. Nxe4 {[%clk 0:03:05.4]} 4... Nf6 {[%clk 0:03:03.5]} 5. Nxf6+ {[%clk
0:03:06.4]} 5... gxf6 {[%clk 0:03:05.4]} 6. c3 {[%clk 0:03:07.3]} 6... Bf5
{[%clk 0:03:04.4]} 7. Nf3 {[%clk 0:03:07.7]} 7... e6 {[%clk 0:03:05.3]} 8. g3
{[%clk 0:03:08.7]} 8... Bd6 {[%clk 0:02:53.6]} 9. Bg2 {[%clk 0:03:09.9]} 9...
Nd7 {[%clk 0:02:54.8]} 10. O-O {[%clk 0:03:10.2]} 10... Qc7 {[%clk 0:02:53.7]}
11. c4 {[%clk 0:03:11.4]} 11... O-O-O {[%clk 0:02:50.8]} 12. c5 {[%clk
0:03:08.9]} 12... Be7 {[%clk 0:02:51.3]} 13. Qe2 {[%clk 0:03:07.4]} 13... Rhe8
{[%clk 0:02:48.2]} 14. b4 {[%clk 0:03:07.2]} 14... e5 {[%clk 0:02:40.4]} 15.
dxe5 {[%clk 0:03:05.1]} 15... Nxe5 {[%clk 0:02:16]} 16. Rd1 {[%clk 0:02:04.1]}
16... Nd3 {[%clk 0:01:55.8]} 17. Qd2 {[%clk 0:01:36.1]} 17... Nxb4 {[%clk
0:01:43.2]} 18. Nd4 {[%clk 0:01:18]} 18... Bxc5 {[%clk 0:01:36.1]} 19. Qc3
{[%clk 0:01:05.3]} 19... Bxd4 {[%clk 0:01:19.3]} 20. Rxd4 {[%clk 0:01:06.3]}
20... Rxd4 {[%clk 0:00:41.9]} 21. Qxd4 {[%clk 0:01:08.2]} 21... Nc2 {[%clk
0:00:42.6]} 22. Qxf6 {[%clk 0:00:47.9]} 22... Re1+ {[%clk 0:00:17.8]} 23. Bf1
{[%clk 0:00:49.1]} 23... Nxa1 {[%clk 0:00:13.5]} 24. Qxf5+ {[%clk 0:00:26.6]}
24... Qd7 {[%clk 0:00:14.4]} 25. Qg5 {[%clk 0:00:26]} 25... Qh3 {[%clk
0:00:04.7]} 26. Qg8+ {[%clk 0:00:24.6]} 26... Kc7 {[%clk 0:00:02.4]} 27. Qxf7+
{[%clk 0:00:26.5]} 27... Kb6 {[%clk 0:00:03.2]} 28. Be3+ {[%clk 0:00:28]} 28...
Ka5 {[%clk 0:00:03.4]} 29. Bd2+ {[%clk 0:00:28.4]} 1-0

[Event "*** MasterClass Titled Tuesday Blitz"]
[Site "Chess.com"]
[Date "2017.09.05"]
[Round "1"]
[White "wonderfultime"]
[Black "Goala"]
[Result "1-0"]
[WhiteElo "2665"]
[BlackElo "2368"]
[TimeControl "180+2"]
[EndTime "13:08:00 PDT"]
[Termination "wonderfultime won on time"]

1. d4 {[%clk 0:03:01.9]} 1... e6 {[%clk 0:03:00.3]} 2. c4 {[%clk 0:02:54.7]}
2... Nf6 {[%clk 0:02:56.5]} 3. Nf3 {[%clk 0:02:54.9]} 3... c5 {[%clk 0:02:56.8]}
4. d5 {[%clk 0:02:56]} 4... exd5 {[%clk 0:02:58.7]} 5. cxd5 {[%clk 0:02:57.9]}
5... d6 {[%clk 0:02:59.9]} 6. Nc3 {[%clk 0:02:59.4]} 6... g6 {[%clk 0:03:00.7]}
7. Bf4 {[%clk 0:03:00.7]} 7... a6 {[%clk 0:02:59]} 8. a4 {[%clk 0:03:01.7]} 8...
Bg7 {[%clk 0:02:57.7]} 9. h3 {[%clk 0:03:03.3]} 9... O-O {[%clk 0:02:58.3]} 10.
e3 {[%clk 0:03:04.9]} 10... Re8 {[%clk 0:02:58.7]} 11. Nd2 {[%clk 0:02:59.8]}
11... Nbd7 {[%clk 0:02:58.1]} 12. Bxd6 {[%clk 0:02:41.7]} 12... Nb6 {[%clk
0:02:54.6]} 13. Bxc5 {[%clk 0:02:39.6]} 13... Nbxd5 {[%clk 0:02:54.3]} 14. Bc4
{[%clk 0:02:15.7]} 14... Nxc3 {[%clk 0:02:42.2]} 15. bxc3 {[%clk 0:02:15]} 15...
Qc7 {[%clk 0:02:35.6]} 16. Bd4 {[%clk 0:02:13.7]} 16... Bf5 {[%clk 0:02:29.6]}
17. O-O {[%clk 0:02:04.2]} 17... Rad8 {[%clk 0:02:27.2]} 18. Qb3 {[%clk
0:02:01.8]} 18... Qd7 {[%clk 0:02:04.4]} 19. Rfd1 {[%clk 0:01:47.2]} 19... Bxh3
{[%clk 0:01:41.9]} 20. gxh3 {[%clk 0:01:49.1]} 20... Qxh3 {[%clk 0:01:38.1]} 21.
Qxb7 {[%clk 0:01:42.2]} 21... Rd7 {[%clk 0:00:55.7]} 22. Qf3 {[%clk 0:01:31.1]}
22... Qh4 {[%clk 0:00:56.5]} 23. Rab1 {[%clk 0:01:21.6]} 23... Ng4 {[%clk
0:00:56.2]} 24. Nf1 {[%clk 0:01:09.7]} 24... Rde7 {[%clk 0:00:23.8]} 25. Qg3
{[%clk 0:00:55.5]} 25... Qh5 {[%clk 0:00:17.4]} 26. Be2 {[%clk 0:00:55.2]} 26...
f5 {[%clk 0:00:16.9]} 27. Nh2 {[%clk 0:00:45.9]} 27... Be5 {[%clk 0:00:09]} 28.
Bxe5 {[%clk 0:00:45.8]} 28... Rxe5 {[%clk 0:00:09.6]} 29. Bxg4 {[%clk
0:00:44.8]} 29... fxg4 {[%clk 0:00:10.3]} 30. Nxg4 {[%clk 0:00:46.7]} 30... Rf5
{[%clk 0:00:07.2]} 31. Rb8 {[%clk 0:00:43.5]} 31... Rxb8 {[%clk 0:00:04.9]} 32.
Qxb8+ {[%clk 0:00:43.2]} 32... Kg7 {[%clk 0:00:05.4]} 33. Rd7+ {[%clk
0:00:36.8]} 1-0

[Event "*** MasterClass Titled Tuesday Blitz"]
[Site "Chess.com"]
[Date "2017.09.05"]
[Round "1"]
[White "Alex_Molchanov"]
[Black "Mistheoretical"]
[Result "1-0"]
[WhiteElo "2506"]
[BlackElo "2217"]
[TimeControl "180+2"]
[EndTime "13:08:05 PDT"]
[Termination "Alex_Molchanov won by resignation"]

1. c4 {[%clk 0:03:01.9]} 1... Nf6 {[%clk 0:02:55.7]} 2. Nc3 {[%clk 0:03:02]}
2... g6 {[%clk 0:02:51.7]} 3. g3 {[%clk 0:03:02.4]} 3... Bg7 {[%clk 0:02:52.4]}
4. Bg2 {[%clk 0:03:03.9]} 4... e5 {[%clk 0:02:45.3]} 5. e4 {[%clk 0:03:04.4]}
5... O-O {[%clk 0:02:37.8]} 6. Nge2 {[%clk 0:03:05.6]} 6... Nc6 {[%clk
0:02:24.5]} 7. O-O {[%clk 0:03:06.4]} 7... d6 {[%clk 0:02:22.5]} 8. d3 {[%clk
0:03:06.5]} 8... h6 {[%clk 0:02:19.8]} 9. Nd5 {[%clk 0:03:06]} 9... Nd7 {[%clk
0:02:10]} 10. Be3 {[%clk 0:03:04.9]} 10... Ne7 {[%clk 0:02:01.4]} 11. Qd2 {[%clk
0:03:03.4]} 11... Kh7 {[%clk 0:02:02.1]} 12. b4 {[%clk 0:03:03.3]} 12... c6
{[%clk 0:01:51.1]} 13. Ndc3 {[%clk 0:03:03.7]} 13... a6 {[%clk 0:01:35.2]} 14.
a4 {[%clk 0:03:02.7]} 14... f5 {[%clk 0:01:30.9]} 15. Rae1 {[%clk 0:02:54.9]}
15... Nf6 {[%clk 0:01:15.5]} 16. h3 {[%clk 0:02:50.4]} 16... Be6 {[%clk
0:01:11.6]} 17. b5 {[%clk 0:02:46.8]} 17... axb5 {[%clk 0:01:11]} 18. axb5
{[%clk 0:02:47]} 18... f4 {[%clk 0:01:06.2]} 19. gxf4 {[%clk 0:02:46.1]} 19...
Nh5 {[%clk 0:01:07.6]} 20. fxe5 {[%clk 0:02:34.1]} 20... dxe5 {[%clk 0:01:09.5]}
21. bxc6 {[%clk 0:02:22.6]} 21... bxc6 {[%clk 0:01:07.9]} 22. f4 {[%clk
0:01:34.8]} 22... exf4 {[%clk 0:00:59.9]} 23. Bxf4 {[%clk 0:01:35.8]} 23... Nxf4
{[%clk 0:00:57.3]} 24. Nxf4 {[%clk 0:01:34.8]} 24... Bxc4 {[%clk 0:00:50.5]} 25.
Nce2 {[%clk 0:01:28.2]} 25... Ra2 {[%clk 0:00:38.5]} 26. Qe3 {[%clk 0:01:25.1]}
26... Bg8 {[%clk 0:00:32.5]} 27. Kh1 {[%clk 0:01:21.8]} 27... Qd6 {[%clk
0:00:23.4]} 28. d4 {[%clk 0:01:16.3]} 28... Ra3 {[%clk 0:00:20.6]} 29. Qg1
{[%clk 0:01:11.6]} 29... Ra2 {[%clk 0:00:15.9]} 30. e5 {[%clk 0:01:11.4]} 30...
Qd7 {[%clk 0:00:14.1]} 31. Be4 {[%clk 0:01:11.7]} 31... Nf5 {[%clk 0:00:11.5]}
32. Qxg6+ {[%clk 0:01:10.9]} 32... Kh8 {[%clk 0:00:10.5]} 33. e6 {[%clk
0:00:52.4]} 33... Qe8 {[%clk 0:00:06.9]} 34. Qxe8 {[%clk 0:00:48.8]} 34... Rxe8
{[%clk 0:00:07.2]} 35. Bxf5 {[%clk 0:00:50.5]} 35... Re7 {[%clk 0:00:04]} 36.
Ng6+ {[%clk 0:00:50.9]} 1-0

[Event "*** MasterClass Titled Tuesday Blitz"]
[Site "Chess.com"]
[Date "2017.09.05"]
[Round "1"]
[White "pawnwonder"]
[Black "MyleneFarmer"]
[Result "0-1"]
[WhiteElo "1999"]
[BlackElo "2424"]
[TimeControl "180+2"]
[EndTime "13:08:05 PDT"]
[Termination "MyleneFarmer won by resignation"]

1. e4 {[%clk 0:02:59.3]} 1... e6 {[%clk 0:02:57.8]} 2. d4 {[%clk 0:02:58.5]}
2... d5 {[%clk 0:02:57.6]} 3. e5 {[%clk 0:02:59.5]} 3... c5 {[%clk 0:02:56.9]}
4. c3 {[%clk 0:02:56.8]} 4... Nc6 {[%clk 0:02:57.9]} 5. Nf3 {[%clk 0:02:55.9]}
5... Qb6 {[%clk 0:02:55.8]} 6. a3 {[%clk 0:02:56.5]} 6... c4 {[%clk 0:02:55.2]}
7. Nbd2 {[%clk 0:02:55.5]} 7... Na5 {[%clk 0:02:47.2]} 8. g3 {[%clk 0:02:55.1]}
8... Bd7 {[%clk 0:02:47.3]} 9. Bg2 {[%clk 0:02:53]} 9... O-O-O {[%clk
0:02:42.7]} 10. O-O {[%clk 0:02:53.1]} 10... h6 {[%clk 0:02:43]} 11. h4 {[%clk
0:02:53.4]} 11... f5 {[%clk 0:02:32.2]} 12. exf6 {[%clk 0:02:44.1]} 12... gxf6
{[%clk 0:02:32.5]} 13. Re1 {[%clk 0:02:44.5]} 13... Ne7 {[%clk 0:02:30]} 14. Rb1
{[%clk 0:02:13.7]} 14... Nf5 {[%clk 0:02:24.6]} 15. b4 {[%clk 0:01:25.8]} 15...
cxb3 {[%clk 0:02:23.8]} 16. Nxb3 {[%clk 0:01:25.7]} 16... Ba4 {[%clk 0:02:23.9]}
17. Nxa5 {[%clk 0:01:26.9]} 17... Bxd1 {[%clk 0:02:22.2]} 18. Rxb6 {[%clk
0:01:27.5]} 18... axb6 {[%clk 0:02:22.7]} 19. Rxd1 {[%clk 0:01:06.7]} 19... bxa5
{[%clk 0:02:22.6]} 20. Re1 {[%clk 0:01:08.1]} 20... Kd7 {[%clk 0:02:22.2]} 21.
Bh3 {[%clk 0:01:06.4]} 21... Rc8 {[%clk 0:02:22.4]} 22. Bd2 {[%clk 0:01:06.3]}
22... Rg8 {[%clk 0:02:22.9]} 23. g4 {[%clk 0:01:01.4]} 23... Nd6 {[%clk
0:01:54.9]} 24. Re2 {[%clk 0:00:58.9]} 24... Ne4 {[%clk 0:01:54.7]} 25. Be1
{[%clk 0:00:59.5]} 25... Nxc3 {[%clk 0:01:36.2]} 26. Bxc3 {[%clk 0:00:58.6]}
26... Rxc3 {[%clk 0:01:35.9]} 27. g5 {[%clk 0:00:59.7]} 27... f5 {[%clk
0:01:31.5]} 28. Ne5+ {[%clk 0:01:00.3]} 28... Kc7 {[%clk 0:01:30.8]} 29. Bg2
{[%clk 0:00:47.8]} 29... hxg5 {[%clk 0:01:24.2]} 30. hxg5 {[%clk 0:00:49.7]}
30... Rxg5 {[%clk 0:01:15.5]} 31. Nf7 {[%clk 0:00:50.1]} 31... Rc1+ {[%clk
0:01:12.8]} 32. Kh2 {[%clk 0:00:50.7]} 32... Bd6+ {[%clk 0:01:13.4]} 33. Nxd6
{[%clk 0:00:43.3]} 33... Kxd6 {[%clk 0:01:13.6]} 34. Rb2 {[%clk 0:00:44.5]}
34... Rh5+ {[%clk 0:01:08.6]} 35. Kg3 {[%clk 0:00:45.1]} 35... Rc3+ {[%clk
0:01:02.2]} 36. f3 {[%clk 0:00:46.1]} 36... Rxa3 {[%clk 0:00:56.4]} 37. Rxb7
{[%clk 0:00:46.6]} 37... Rg5+ {[%clk 0:00:56.2]} 38. Kh2 {[%clk 0:00:44.2]}
38... Ra2 {[%clk 0:00:55.7]} 39. Rb6+ {[%clk 0:00:44.9]} 39... Kd7 {[%clk
0:00:53.3]} 0-1

[Event "*** MasterClass Titled Tuesday Blitz"]
[Site "Chess.com"]
[Date "2017.09.05"]
[Round "1"]
[White "OparinGrigoriy"]
[Black "FelixBlohberger"]
[Result "1-0"]
[WhiteElo "2605"]
[BlackElo "2321"]
[TimeControl "180+2"]
[EndTime "13:08:06 PDT"]
[Termination "OparinGrigoriy won by resignation"]

1. e4 {[%clk 0:02:40.4]} 1... e6 {[%clk 0:03:00.3]} 2. d4 {[%clk 0:02:41]} 2...
d5 {[%clk 0:03:00]} 3. Nc3 {[%clk 0:02:42]} 3... Nf6 {[%clk 0:03:00.6]} 4. e5
{[%clk 0:02:40.8]} 4... Nfd7 {[%clk 0:03:01.4]} 5. f4 {[%clk 0:02:43.6]} 5... c5
{[%clk 0:03:02.5]} 6. Nf3 {[%clk 0:02:45.8]} 6... Nc6 {[%clk 0:03:03.8]} 7. Be3
{[%clk 0:02:48.1]} 7... a6 {[%clk 0:03:05]} 8. Qd2 {[%clk 0:02:49.4]} 8... b5
{[%clk 0:03:05.7]} 9. a3 {[%clk 0:02:50.4]} 9... Qa5 {[%clk 0:03:06]} 10. Rb1
{[%clk 0:02:47.2]} 10... Qb6 {[%clk 0:03:03.5]} 11. Ne2 {[%clk 0:02:43.1]} 11...
a5 {[%clk 0:02:49.6]} 12. dxc5 {[%clk 0:02:31.9]} 12... Bxc5 {[%clk 0:02:49.9]}
13. Ned4 {[%clk 0:02:31.8]} 13... Nxd4 {[%clk 0:02:28.9]} 14. Bxd4 {[%clk
0:02:30.4]} 14... O-O {[%clk 0:02:20.4]} 15. Qe3 {[%clk 0:02:27]} 15... Bxd4
{[%clk 0:02:11.5]} 16. Qxd4 {[%clk 0:02:27.2]} 16... b4 {[%clk 0:02:05.5]} 17.
Qxb6 {[%clk 0:02:12.7]} 17... Nxb6 {[%clk 0:02:07.4]} 18. Nd4 {[%clk 0:02:08.3]}
18... Ba6 {[%clk 0:01:50.3]} 19. Bd3 {[%clk 0:02:09.7]} 19... Rfc8 {[%clk
0:01:33]} 20. Kd2 {[%clk 0:02:09.7]} 20... Nc4+ {[%clk 0:01:15.1]} 21. Bxc4
{[%clk 0:02:10.8]} 21... Rxc4 {[%clk 0:01:16]} 22. c3 {[%clk 0:02:10.8]} 22...
Rac8 {[%clk 0:01:14]} 23. Rhc1 {[%clk 0:02:11.2]} 23... bxa3 {[%clk 0:01:07.8]}
24. b3 {[%clk 0:02:06.4]} 24... R4c5 {[%clk 0:00:57.5]} 25. Ra1 {[%clk
0:02:07.3]} 25... h6 {[%clk 0:00:48.7]} 26. Rxa3 {[%clk 0:02:07.7]} 26... Bb7
{[%clk 0:00:45]} 27. g3 {[%clk 0:02:02.5]} 27... g6 {[%clk 0:00:35.2]} 28. Raa1
{[%clk 0:02:02.1]} 28... Kg7 {[%clk 0:00:33.1]} 29. Ra2 {[%clk 0:01:53.3]} 29...
R8c7 {[%clk 0:00:33.2]} 30. Rcc2 {[%clk 0:01:53.4]} 30... Rc8 {[%clk 0:00:26.5]}
31. Rab2 {[%clk 0:01:41.2]} 31... R8c7 {[%clk 0:00:26.6]} 32. b4 {[%clk
0:01:40.5]} 32... axb4 {[%clk 0:00:26.7]} 33. cxb4 {[%clk 0:01:42.4]} 33... Rc4
{[%clk 0:00:24.4]} 34. Rxc4 {[%clk 0:01:43.5]} 34... Rxc4 {[%clk 0:00:26.3]} 35.
Kd3 {[%clk 0:01:44.8]} 35... Rc1 {[%clk 0:00:22.4]} 36. b5 {[%clk 0:01:45.8]}
36... g5 {[%clk 0:00:22.1]} 37. f5 {[%clk 0:01:46.2]} 37... Rd1+ {[%clk
0:00:21.8]} 38. Kc3 {[%clk 0:01:45.1]} 38... Re1 {[%clk 0:00:22.7]} 39. Re2
{[%clk 0:01:43.3]} 39... Rc1+ {[%clk 0:00:22.1]} 40. Rc2 {[%clk 0:01:42.3]}
40... Re1 {[%clk 0:00:22.7]} 41. fxe6 {[%clk 0:01:43]} 41... Rxe5 {[%clk
0:00:18.2]} 42. exf7 {[%clk 0:01:42.2]} 42... Kxf7 {[%clk 0:00:18.9]} 43. Kb4
{[%clk 0:01:43.7]} 43... Re7 {[%clk 0:00:18]} 44. Rf2+ {[%clk 0:01:41.7]} 44...
Kg6 {[%clk 0:00:18.3]} 45. Kc5 {[%clk 0:01:43]} 45... Bc8 {[%clk 0:00:16.4]} 46.
b6 {[%clk 0:01:42.5]} 46... h5 {[%clk 0:00:14.9]} 47. Rf8 {[%clk 0:01:42.6]}
47... Bh3 {[%clk 0:00:15.3]} 48. Kc6 {[%clk 0:01:40.3]} 48... Bd7+ {[%clk
0:00:14.9]} 49. Kd6 {[%clk 0:01:41.4]} 49... Re4 {[%clk 0:00:10.6]} 50. b7
{[%clk 0:01:42.4]} 1-0